fUSD/lending_fUSD_20240118
["ID","MTS","AMOUNT","RATE_DAILY","PERIOD"]
[311999929,1705539043670,-351.70623296,0.00022534,2]
[311999930,1705539043680,-1981.26,0.00022534,2]
[311999931,1705539043690,-500.0,0.00022534,2]
[311999932,1705539043699,-500.0,0.00022534,2]
[311999933,1705539043710,-604.21,0.00022534,2]
[311999934,1705539043719,-768.85,0.00022534,2]
[311999936,1705539043729,-1268.13,0.00022534,2]
[311999938,1705539043738,-500.0,0.00022534,2]
[311999940,1705539043747,-500.0,0.00022534,2]
[311999942,1705539043757,-619.59,0.00022534,2]
[311999944,1705539043767,-839.66,0.00022534,2]
[311999946,1705539043777,-500.0,0.00022534,2]
[311999948,1705539043789,-721.41,0.00022534,2]
[311999950,1705539043799,-500.0,0.00022534,2]
[311999952,1705539043808,-636.2,0.00022534,2]
[311999954,1705539043818,-500.0,0.00022534,2]
[311999956,1705539043826,-1604.89,0.00022534,2]
[311999958,1705539043836,-500.0,0.00022534,2]
[311999960,1705539043845,-500.0,0.00022534,5]
[311999962,1705539043854,-404.2,0.00022534,2]
[311999964,1705539043863,-519.36,0.00022534,2]
[311999966,1705539043873,-500.0,0.00022534,2]
[311999968,1705539043883,-660.66,0.00022534,2]
[311999970,1705539043893,-1098.18,0.00022534,2]
[311999972,1705539043902,-500.0,0.00022534,2]
[311999974,1705539043911,-513.71,0.00022534,2]
[311999976,1705539043920,-500.0,0.00022534,2]
[311999978,1705539043933,-500.0,0.00022534,2]
[311999980,1705539043943,-500.0,0.00022534,2]
[311999982,1705539043952,-500.0,0.00022534,2]
[311999984,1705539043962,-560.06,0.00022534,2]
[311999986,1705539043971,-500.0,0.00022535,2]
[311999988,1705539043980,-176.27,0.00022548,2]
[311999990,1705539043990,-232.70096364,0.00022583,2]
[311999995,1705539044042,-160.17,0.00022599,10]
[311999996,1705539044050,-250.0,0.000226,2]
[311999997,1705539044059,-500.0,0.00022602,2]
[311999998,1705539044068,-800.0,0.00022603,2]
[311999999,1705539044078,-800.0,0.00022633,2]
[312000000,1705539044088,-151.0,0.00022634,7]
[312000001,1705539044097,-500.0,0.00022634,2]
[312000002,1705539044107,-500.0,0.00022634,2]
[312000003,1705539044116,-500.0,0.00022634,2]
[312000004,1705539044125,-500.0,0.00022634,2]
[312000005,1705539044134,-500.0,0.00022634,2]
[312000006,1705539044144,-547.26,0.00022634,2]
[312000007,1705539044153,-500.0,0.00022634,2]
[312000008,1705539044162,-500.0,0.00022634,2]
[312000009,1705539044172,-500.0,0.00022634,2]
[312000010,1705539044182,-500.0,0.00022634,2]
[312000011,1705539044191,-500.0,0.00022634,2]
[312000012,1705539044200,-500.0,0.00022634,2]
[312000013,1705539044210,-500.0,0.00022634,2]
[312000014,1705539044219,-585.54,0.00022634,2]
[312000015,1705539044228,-185.23,0.00022635,2]
[312000016,1705539044237,-205.8,0.00022635,2]
[312000017,1705539044246,-500.0,0.00022635,2]
[312000018,1705539044256,-500.0,0.00022635,2]
[312000019,1705539044265,-500.0,0.00022635,2]
[312000020,1705539044275,-500.0,0.00022635,2]
[312000021,1705539044286,-500.0,0.00022635,2]
[312000022,1705539044296,-500.0,0.00022635,2]
[312000023,1705539044305,-500.0,0.00022635,2]
[312000024,1705539044315,-500.0,0.00022635,2]
[312000025,1705539044324,-500.0,0.00022635,2]
[312000026,1705539044333,-500.0,0.00022635,2]
[312000027,1705539044342,-500.0,0.00022635,2]
[312000028,1705539044351,-500.0,0.00022635,2]
[312000029,1705539044360,-500.0,0.00022635,2]
[312000030,1705539044369,-500.0,0.00022635,2]
[312000031,1705539044378,-150.01,0.00022636,2]
[312000032,1705539044386,-1708.45346261,0.00022636,2]
[312000033,1705539044396,-151.0,0.00022637,7]
[312000034,1705539044405,-151.0,0.00022637,7]
[312000035,1705539044414,-18327.53837023,0.00022637,2]
[312000036,1705539044423,-1393.53159351,0.00022637,2]
[312000037,1705539044432,-4256.57228959,0.00022637,2]
[312000038,1705539044442,-157.15051088,0.00022637,2]
[312000039,1705539044451,-206.19924753,0.00022637,2]
[312000040,1705539044460,-229.92784566,0.00022637,2]
[312000041,1705539044469,-313.31309106,0.00022637,2]
[312000042,1705539044478,-282.64689268,0.00022637,2]
[312000043,1705539044487,-168.71243974,0.00022637,2]
[312000044,1705539044496,-158.36302786,0.00022637,2]
[312000045,1705539044505,-541.98350192,0.00022637,2]
[312000046,1705539044514,-300.0,0.00022637,2]
[312000047,1705539044524,-348.169059,0.00022637,2]
[312000048,1705539044535,-827.48898126,0.00022637,2]
[312000049,1705539044545,-3205.32742766,0.00022637,2]
[312000050,1705539044554,-204.07310533,0.00022637,2]
[312000051,1705539044563,-191.17367294,0.00022637,2]
[312000052,1705539044572,-155.0,0.00022637,2]
[312000053,1705539044582,-609.85464141,0.00022637,2]
[312000054,1705539044591,-3530.32110422,0.00022637,2]
[312000055,1705539044600,-150.0,0.00022637,2]
[312000056,1705539044609,-242.87212422,0.00022638,2]
[312000057,1705539044619,-500.0,0.00022638,2]
[312000058,1705539044628,-151.0,0.00022639,7]
[312000059,1705539044637,-151.0,0.00022639,7]
[312000060,1705539044646,-151.0,0.00022639,7]
[312000061,1705539044655,-875.89540556,0.00022639,2]
[312000062,1705539044664,-98022.19585655,0.00022639,2]
[312000063,1705539044673,-150.0,0.00022642,2]
[312000064,1705539044682,-164.61,0.00022674,2]
[312000065,1705539044691,-658.66970858,0.00022681,2]
[312000066,1705539044700,-180.0,0.00022686,2]
[312000067,1705539044709,-232.70096364,0.00022689,2]
[312000068,1705539044718,-434.0,0.000227,2]
[312000069,1705539044728,-343.0,0.000227,2]
[312000070,1705539044737,-1000.0,0.000227,2]
[312000071,1705539044746,-644.56902779,0.00022708,2]
[312000072,1705539044756,-150.0,0.00022724,2]
[312000073,1705539044765,-987.94246959,0.0002273,2]
[312000074,1705539044774,-150.98,0.00022765,2]
[312000075,1705539044785,-155.0,0.00022766,2]
[312000076,1705539044794,-4906.0063682,0.0002277,2]
[312000077,1705539044803,-150.0,0.00022771,2]
[312000078,1705539044812,-232.70096364,0.00022794,2]
[312000079,1705539044821,-343.46,0.00022807,2]
[312000080,1705539044831,-500.0,0.00022807,2]
[312000081,1705539044840,-2574.34,0.00022807,2]
[312000082,1705539044849,-500.0,0.00022807,2]
[312000083,1705539044858,-500.0,0.00022807,2]
[312000084,1705539044868,-500.0,0.00022807,2]
[312000085,1705539044877,-1106.3,0.00022807,2]
[312000086,1705539044886,-1017.26,0.00022807,2]
[312000087,1705539044896,-297.32,0.00022807,2]
[312000088,1705539044905,-151.58,0.00022807,2]
[312000089,1705539044914,-500.0,0.00022807,2]
[312000090,1705539044924,-500.0,0.00022807,2]
[312000091,1705539044934,-500.0,0.00022807,2]
[312000092,1705539044945,-460.98,0.00022807,2]
[312000093,1705539044954,-5556.95,0.00022807,2]
[312000094,1705539044963,-500.0,0.00022807,2]
[312000095,1705539044973,-500.0,0.00022807,2]
[312000096,1705539044983,-500.0,0.00022807,2]
[312000097,1705539044992,-500.0,0.00022807,2]
[312000098,1705539045000,-771.31,0.00022807,2]
[312000099,1705539045010,-500.0,0.00022807,2]
[312000100,1705539045019,-1022.89,0.00022807,2]
[312000101,1705539045030,-500.0,0.00022807,2]
[312000102,1705539045039,-500.0,0.00022807,2]
[312000103,1705539045047,-500.0,0.00022807,2]
[312000104,1705539045057,-500.0,0.00022807,2]
[312000105,1705539045066,-500.0,0.00022807,2]
[312000106,1705539045076,-528.7,0.00022807,2]
[312000107,1705539045087,-1534.43,0.00022807,5]
[312000108,1705539045098,-1461.24,0.00022807,2]
[312000109,1705539045107,-500.0,0.00022807,2]
[312000110,1705539045117,-500.0,0.00022807,2]
[312000111,1705539045127,-500.0,0.00022807,2]
[312000112,1705539045137,-500.0,0.00022807,2]
[312000114,1705539045147,-3029.87,0.00022807,2]
[312000116,1705539045157,-500.0,0.00022807,2]
[312000117,1705539045167,-470.65,0.00022807,2]
[312000118,1705539045176,-500.0,0.00022807,2]
[312000119,1705539045185,-2789.78,0.00022807,2]
[312000120,1705539045194,-500.0,0.00022807,2]
[312000121,1705539045203,-186.87,0.00022807,2]
[312000122,1705539045213,-207.67,0.00022807,2]
[312000123,1705539045223,-151.0,0.00022808,7]
[312000124,1705539045233,-151.0,0.00022808,7]
[312000125,1705539045243,-151.0,0.00022808,7]
[312000126,1705539045252,-500.0,0.00022808,2]
[312000127,1705539045262,-314.43,0.00022808,2]
[312000128,1705539045271,-437.54,0.00022808,2]
[312000129,1705539045280,-214.06,0.00022808,2]
[312000130,1705539045289,-445.51590709,0.00022808,2]
[312000131,1705539045299,-428.78,0.00022808,2]
[312000132,1705539045309,-500.0,0.00022808,2]
[312000133,1705539045319,-443.49,0.00022808,2]
[312000134,1705539045328,-450.89,0.00022808,2]
[312000135,1705539045338,-512.47,0.00022808,2]
[312000136,1705539045347,-447.12,0.00022808,2]
[312000137,1705539045356,-212.82,0.00022808,2]
[312000139,1705539045365,-500.0,0.00022808,7]
[312000141,1705539045374,-365.65,0.00022808,2]
[312000142,1705539045383,-500.0,0.00022808,2]
[312000144,1705539045392,-551.69,0.00022808,2]
[312000146,1705539045401,-500.0,0.00022808,2]
[312000147,1705539045410,-150.0,0.00022808,2]
[312000148,1705539045419,-527.51,0.00022808,2]
[312000149,1705539045428,-402.77,0.00022808,2]
[312000150,1705539045437,-157.78,0.00022808,2]
[312000151,1705539045447,-489.06,0.00022808,2]
[312000152,1705539045456,-511.05,0.00022808,2]
[312000153,1705539045465,-448.59,0.00022808,2]
[312000154,1705539045474,-500.0,0.00022808,2]
[312000155,1705539045483,-391.77,0.00022808,2]
[312000156,1705539045493,-184.78,0.00022808,2]
[312000157,1705539045502,-395.9,0.00022808,2]
[312000158,1705539045510,-312.06,0.00022808,2]
[312000159,1705539045519,-500.0,0.00022808,2]
[312000160,1705539045528,-313.02,0.00022808,2]
[312000161,1705539045537,-500.0,0.00022808,2]
[312000162,1705539045548,-500.0,0.00022808,2]
[312000163,1705539045559,-331.91,0.00022808,2]
[312000164,1705539045569,-150.0,0.00022808,2]
[312000165,1705539045578,-500.0,0.00022808,2]
[312000166,1705539045588,-500.0,0.00022808,2]
[312000167,1705539045597,-500.0,0.00022808,2]
[312000168,1705539045606,-500.0,0.00022808,2]
[312000169,1705539045615,-1230.19,0.00022808,2]
[312000170,1705539045624,-1090.78,0.00022808,2]
[312000171,1705539045633,-500.0,0.00022808,2]
[312000172,1705539045641,-500.0,0.00022808,2]
[312000173,1705539045650,-500.0,0.00022808,2]
[312000174,1705539045659,-500.0,0.00022808,2]
[312000175,1705539045668,-621.57,0.00022808,2]
[312000176,1705539045678,-500.0,0.00022808,2]
[312000177,1705539045688,-500.0,0.00022808,2]
[312000178,1705539045697,-553.03,0.00022808,2]
[312000179,1705539045706,-842.62,0.00022808,2]
[312000180,1705539045715,-500.0,0.00022808,2]
[312000181,1705539045724,-177.89,0.00022808,2]
[312000182,1705539045733,-518.81,0.00022808,2]
[312000183,1705539045742,-500.0,0.00022808,2]
[312000184,1705539045750,-1070.24,0.00022808,2]
[312000185,1705539045759,-500.0,0.00022808,2]
[312000186,1705539045768,-500.0,0.00022808,2]
[312000187,1705539045777,-500.0,0.00022808,2]
[312000188,1705539045788,-500.0,0.00022808,2]
[312000189,1705539045798,-883.16,0.00022808,2]
[312000190,1705539045808,-500.0,0.00022808,2]
[312000193,1705539045817,-1697.08,0.00022808,2]
[312000196,1705539045826,-743.49,0.00022808,2]
[312000199,1705539045835,-500.0,0.00022808,2]
[312000201,1705539045844,-237.34,0.00022808,2]
[312000202,1705539045854,-500.0,0.00022808,2]
[312000203,1705539045863,-500.0,0.00022808,2]
[312000204,1705539045872,-500.0,0.00022808,2]
[312000205,1705539045881,-500.0,0.00022808,2]
[312000206,1705539045891,-1906.67,0.00022808,2]
[312000207,1705539045900,-500.0,0.00022808,2]
[312000208,1705539045910,-500.0,0.00022808,2]
[312000209,1705539045919,-500.0,0.00022808,2]
[312000210,1705539045929,-530.95,0.00022808,2]
[312000211,1705539045941,-599.61,0.00022808,2]
[312000212,1705539045950,-500.0,0.00022808,2]
[312000213,1705539045960,-500.0,0.00022808,2]
[312000214,1705539045970,-500.0,0.00022808,2]
[312000215,1705539045982,-500.0,0.00022808,2]
[312000216,1705539045992,-500.0,0.00022808,2]
[312000217,1705539046001,-650.05,0.00022808,2]
[312000218,1705539046012,-579.53,0.00022808,2]
[312000219,1705539046022,-500.0,0.00022808,2]
[312000220,1705539046032,-4209.65,0.00022808,2]
[312000221,1705539046043,-500.0,0.00022808,2]
[312000222,1705539046052,-500.0,0.00022808,2]
[312000223,1705539046061,-742.13,0.00022808,2]
[312000224,1705539046070,-500.0,0.00022808,2]
[312000225,1705539046079,-500.0,0.00022808,2]
[312000226,1705539046088,-500.0,0.00022808,2]
[312000227,1705539046097,-500.0,0.00022808,2]
[312000228,1705539046106,-500.0,0.00022808,2]
[312000229,1705539046115,-2223.78,0.00022808,2]
[312000230,1705539046124,-500.0,0.00022808,2]
[312000231,1705539046133,-1095.3,0.00022808,2]
[312000232,1705539046142,-500.0,0.00022808,2]
[312000233,1705539046151,-283.56,0.00022808,2]
[312000234,1705539046160,-304.7,0.00022808,2]
[312000235,1705539046169,-954.98,0.00022808,2]
[312000236,1705539046178,-500.0,0.00022808,2]
[312000237,1705539046187,-1602.2,0.00022808,2]
[312000238,1705539046196,-1085.89,0.00022808,2]
[312000239,1705539046205,-500.0,0.00022808,2]
[312000240,1705539046213,-1053.87,0.00022808,2]
[312000241,1705539046222,-500.0,0.00022808,2]
[312000242,1705539046231,-1981.26,0.00022808,2]
[312000243,1705539046240,-500.0,0.00022808,2]
[312000244,1705539046249,-604.21,0.00022808,2]
[312000245,1705539046258,-768.85,0.00022808,2]
[312000246,1705539046268,-1268.13,0.00022808,2]
[312000247,1705539046279,-500.0,0.00022808,2]
[312000248,1705539046288,-500.0,0.00022808,2]
[312000249,1705539046298,-619.59,0.00022808,2]
[312000250,1705539046307,-839.66,0.00022808,2]
[312000251,1705539046316,-721.41,0.00022808,2]
[312000252,1705539046326,-636.2,0.00022808,2]
[312000253,1705539046336,-500.0,0.00022808,2]
[312000254,1705539046346,-500.0,0.00022808,2]
[312000255,1705539046354,-1604.89,0.00022808,2]
[312000256,1705539046364,-500.0,0.00022808,5]
[312000257,1705539046374,-500.0,0.00022808,2]
[312000258,1705539046383,-660.66,0.00022808,2]
[312000259,1705539046393,-1098.18,0.00022808,2]
[312000260,1705539046402,-500.0,0.00022808,2]
[312000261,1705539046411,-513.71,0.00022808,2]
[312000262,1705539046421,-500.0,0.00022808,2]
[312000263,1705539046432,-500.0,0.00022808,2]
[312000264,1705539046442,-500.0,0.00022808,2]
[312000265,1705539046452,-500.0,0.00022808,2]
[312000266,1705539046462,-560.06,0.00022808,2]
[312000267,1705539046472,-200.0,0.00022808,2]
[312000268,1705539046482,-154.91,0.00022819,2]
[312000269,1705539046490,-150.0,0.00022825,2]
[312000270,1705539046501,-150.0,0.00022832,2]
[312000271,1705539046511,-150.0,0.00022867,2]
[312000272,1705539046521,-155.59,0.0002288,2]
[312000273,1705539046531,-1351.20550258,0.00022895,2]
[312000274,1705539046541,-1351.20550253,0.00022895,2]
[312000275,1705539046552,-1351.20550253,0.00022896,2]
[312000276,1705539046561,-1351.20550253,0.00022896,2]
[312000277,1705539046571,-1351.20550253,0.00022897,2]
[312000278,1705539046581,-1351.20550253,0.00022897,2]
[312000279,1705539046591,-1351.20550253,0.00022898,2]
[312000280,1705539046600,-162.13465042,0.00022898,2]
[312000281,1705539046610,-1351.20550253,0.00022898,2]
[312000282,1705539046618,-1351.20550253,0.00022899,2]
[312000283,1705539046630,-1351.20550253,0.00022899,2]
[312000284,1705539046640,-1351.20550253,0.000229,2]
[312000285,1705539046650,-1000.00000099,0.000229,2]
[312000286,1705539046660,-1351.20550253,0.000229,2]
[312000287,1705539046671,-1538.74,0.000229,2]
[312000288,1705539046681,-152.36768109,0.000229,2]
[312000289,1705539046691,-162.73746241,0.000229,2]
[312000290,1705539046701,-232.70096364,0.000229,2]
[312000291,1705539046710,-180.39375868,0.000229,2]
[312000292,1705539046718,-1721.97574813,0.000229,6]
[312000293,1705539046727,-196.17775913,0.000229,2]
[312000294,1705539046737,-158.61,0.00022902,2]
[312000295,1705539046746,-159.79,0.00022906,2]
[312000296,1705539046754,-925.0,0.00022908,2]
[312000297,1705539046764,-500.0,0.00022908,2]
[312000298,1705539046773,-500.0,0.00022908,2]
[312000299,1705539046784,-500.0,0.00022908,2]
[312000300,1705539046793,-500.0,0.00022908,2]
[312000301,1705539046801,-500.0,0.00022908,2]
[312000302,1705539046811,-500.0,0.00022908,2]
[312000303,1705539046820,-547.26,0.00022908,2]
[312000304,1705539046829,-500.0,0.00022908,2]
[312000305,1705539046838,-500.0,0.00022908,2]
[312000306,1705539046847,-500.0,0.00022908,2]
[312000307,1705539046856,-500.0,0.00022908,2]
[312000308,1705539046865,-500.0,0.00022908,2]
[312000309,1705539046874,-500.0,0.00022908,2]
[312000310,1705539046884,-500.0,0.00022908,2]
[312000311,1705539046894,-585.54,0.00022908,2]
[312000312,1705539046903,-500.0,0.00022909,2]
[312000313,1705539046912,-500.0,0.00022909,2]
[312000314,1705539046922,-500.0,0.00022909,2]
[312000315,1705539046933,-500.0,0.00022909,2]
[312000316,1705539046942,-500.0,0.00022909,2]
[312000317,1705539046952,-473.05,0.00022909,2]
[312000318,1705539046961,-500.0,0.00022909,2]
[312000319,1705539046971,-500.0,0.00022909,2]
[312000320,1705539046980,-500.0,0.00022909,2]
[312000321,1705539046989,-286.53,0.00022909,2]
[312000322,1705539046999,-151.0,0.00022912,7]
[312000323,1705539047010,-151.0,0.00022912,7]
[312000324,1705539047019,-150.0,0.00022923,2]
[312000325,1705539047030,-152.36768109,0.0002294,2]
[312000326,1705539047039,-158.38,0.00022965,2]
[312000327,1705539047049,-12284.06774911,0.00022975,2]
[312000328,1705539047058,-281.80663417,0.00022976,2]
[312000329,1705539047068,-150.0,0.00022986,2]
[312000330,1705539047079,-150.0,0.00022988,2]
[312000331,1705539047089,-150.0,0.00022993,2]
[312000332,1705539047099,-500.0,0.00022994,2]
[312000333,1705539047108,-93001.44302992,0.00022995,2]
[312000334,1705539047117,-211.02619,0.00022995,7]
[312000335,1705539047127,-151.0,0.00022995,7]
[312000336,1705539047135,-11462.18639681,0.00022996,2]
[312000337,1705539047145,-203.08140272,0.00022996,2]
[312000338,1705539047154,-1042.8818224,0.00022997,2]
[312000339,1705539047163,-3233.750143,0.00022997,2]
[312000340,1705539047172,-300.0,0.00022998,2]
[312000341,1705539047182,-835693.75976632,0.00022998,2]
[312000342,1705539047462,-21733.5547,0.00022998,2]
[312000343,1705539047474,-903.352006,0.00022998,2]
[312000344,1705539047487,-971.933,0.00022998,2]
[312000345,1705539047640,-701.66503495,0.00022998,2]
[312000346,1705539047655,-250.0,0.00022998,2]
[312000347,1705539047670,-488.26518704,0.00022998,2]
[312000348,1705539047682,-3415.49279999,0.00022998,2]
[312000349,1705539047703,-700.43927189,0.00022998,2]
[312000350,1705539047726,-6816.90324979,0.00022998,2]
[312000351,1705539047944,-504.71,0.0002226,2]
[312000352,1705539047954,-8051.0674,0.00022998,2]
[312000353,1705539047971,-77956.82840282,0.00022998,2]
[312000354,1705539047985,-94883.46675,0.00022998,2]
[312000355,1705539047997,-90852.0,0.00022998,2]
[312000356,1705539048011,-37061.2,0.00022998,2]
[312000357,1705539048023,-35946.0,0.00022998,2]
[312000358,1705539048043,-500.91146975,0.00022998,2]
[312000359,1705539048131,-2401.4396862,0.00022998,2]
[312000360,1705539048475,-2008.57775131,0.00022258,2]
[312000361,1705539048485,-500.0,0.0002226,2]
[312000362,1705539048495,-6452.35806268,0.00022998,2]
[312000363,1705539048654,-18599.80771487,0.00022998,2]
[312000364,1705539048666,-1996.852972,0.00022998,2]
[312000365,1705539049304,-265307.76805194,0.00022998,2]
[312000366,1705539049316,-723.78559492,0.00022998,2]
[312000367,1705539049329,-764.64697404,0.00022998,2]
[312000368,1705539049341,-2824.50000151,0.00022998,2]
[312000369,1705539049358,-194.77033893,0.00022259,2]
[312000370,1705539049368,-147.62527011,0.00022998,2]
[312000371,1705539049380,-1036.07277561,0.00022998,2]
[312000372,1705539049392,-591.61324659,0.00022998,2]
[312000373,1705539049404,-593.01027,0.00022998,2]
[312000374,1705539049416,-888.68415017,0.00022998,2]
[312000375,1705539049427,-9368.6801351,0.00022998,2]
[312000376,1705539153765,204.0,0.00017718,2]
[312000383,1705539568119,357.84158297,0.00017718,2]
[312000384,1705539571037,483.25479146,0.00017806,2]
[312000385,1705539572191,283.29816887,0.00017718,2]
[312000386,1705539581902,224.63428457,0.00017718,2]
[312000387,1705539600292,283.18572721,0.00017718,2]
[312000388,1705539616278,207.37074109,0.00017718,2]
[312000403,1705540017098,-203.26057704,0.00018955,2]
[312000404,1705540017119,-2952.87829383,0.00018956,2]
[312000406,1705540206819,677.09,0.00018201,2]
[312000411,1705540231538,-314.24418711,0.00018847,2]
[312000412,1705540231547,-171.66796343,0.00018848,2]
[312000413,1705540231556,-1811.81741843,0.00018944,2]
[312000415,1705540231566,-234.3809266,0.00018945,2]
[312000416,1705540231574,-5442.70539136,0.00018945,2]
[312000418,1705540231584,-3328.83599475,0.00018945,2]
[312000419,1705540231593,-543.19705412,0.00018946,2]
[312000420,1705540231602,-204.37295178,0.00018946,2]
[312000421,1705540231611,-300.0,0.0001895,2]
[312000422,1705540231620,-150.0,0.0001895,2]
[312000423,1705540231629,-171.66796343,0.00019744,2]
[312000424,1705540231639,-15943.02254732,0.00019752,2]
[312000425,1705540231648,-2698.0,0.0001976,2]
[312000426,1705540231657,-150.99,0.0001976,2]
[312000427,1705540231666,-281.17948363,0.0002,2]
[312000428,1705540231675,-154.1,0.00020437,2]
[312000429,1705540231685,-677.09,0.00020465,2]
[312000430,1705540231695,-250.0,0.000205,2]
[312000431,1705540231704,-154.1,0.00020543,2]
[312000432,1705540231712,-2000.0,0.00020548,2]
[312000433,1705540231722,-171.66796343,0.0002064,2]
[312000434,1705540231732,-154.1,0.0002065,2]
[312000435,1705540231741,-420.0,0.00020657,2]
[312000436,1705540231750,-170.61,0.00020699,2]
[312000437,1705540231760,-150.0,0.00020723,2]
[312000438,1705540231770,-429.49,0.00020747,2]
[312000439,1705540231781,-154.1,0.00020756,2]
[312000440,1705540231790,-204.0,0.00020758,2]
[312000441,1705540231801,-204.0,0.00020758,2]
[312000442,1705540231813,-984.61,0.00020813,2]
[312000443,1705540231823,-196.76,0.00020832,2]
[312000444,1705540231833,-154.1,0.00020863,2]
[312000445,1705540231844,-162.57,0.00020924,2]
[312000446,1705540231855,-154.1,0.00020969,2]
[312000447,1705540231864,-728.00554382,0.00021,2]
[312000448,1705540231873,-196.76,0.00021051,2]
[312000449,1705540231884,-154.1,0.00021076,2]
[312000450,1705540231893,-154.1,0.00021182,2]
[312000451,1705540231903,-150.0,0.00021219,2]
[312000452,1705540231913,-155.13784063,0.00021269,2]
[312000453,1705540231923,-196.76,0.0002127,2]
[312000455,1705540231932,-154.1,0.00021289,2]
[312000458,1705540231941,-570.51,0.00021301,2]
[312000461,1705540231951,-150.0,0.00021326,2]
[312000462,1705540231960,-154.1,0.00021395,2]
[312000463,1705540231969,-250.0,0.000214,2]
[312000464,1705540231978,-158.56,0.00021437,2]
[312000465,1705540231987,-159.8,0.00021451,2]
[312000467,1705540231996,-150.0,0.00021462,2]
[312000469,1705540232005,-150.0,0.00021465,2]
[312000471,1705540232014,-196.76,0.00021489,2]
[312000472,1705540232023,-154.1,0.00021502,2]
[312000474,1705540232032,-150.0,0.00021524,2]
[312000476,1705540232041,-171.66796343,0.00021535,2]
[312000478,1705540232050,-150.0,0.00021633,2]
[312000480,1705540232059,-196.76,0.00021709,2]
[312000481,1705540232068,-150.0,0.00021747,2]
[312000483,1705540232077,-158.56,0.00021767,2]
[312000485,1705540232087,-150.0,0.00021787,2]
[312000487,1705540232096,-984.61,0.00021792,2]
[312000489,1705540232105,-176.27,0.00021805,2]
[312000490,1705540232114,-1688.95999396,0.00021813,2]
[312000491,1705540232124,-221504.0,0.00021814,2]
[312000492,1705540232133,-250.0,0.000219,2]
[312000493,1705540232142,-257.56297056,0.000219,2]
[312000494,1705540232151,-250.0,0.000219,2]
[312000495,1705540232162,-500.0,0.00021917,2]
[312000496,1705540232171,-500.0,0.00021917,2]
[312000497,1705540232181,-500.0,0.00021917,2]
[312000498,1705540232190,-500.0,0.00021917,2]
[312000499,1705540232200,-250.0,0.00021918,2]
[312000500,1705540232209,-150.0,0.00021919,2]
[312000501,1705540232218,-196.76,0.00021928,2]
[312000502,1705540232228,-150.0,0.00021934,2]
[312000503,1705540232238,-150.0,0.00021953,2]
[312000504,1705540232248,-25698.0,0.00022,2]
[312000505,1705540232257,-940.89605154,0.00022,2]
[312000506,1705540232270,-150.0,0.00022004,2]
[312000507,1705540232279,-217.73328011,0.00022006,2]
[312000508,1705540232289,-537.218,0.00022012,2]
[312000509,1705540232304,-520.74231329,0.00022057,2]
[312000510,1705540232314,-9170.5627,0.00022059,2]
[312000511,1705540232324,-14732.1511,0.00022059,2]
[312000512,1705540232334,-5490.7983,0.00022059,2]
[312000513,1705540232344,-474.537,0.00022059,2]
[312000514,1705540232354,-92371.6526,0.00022059,2]
[312000515,1705540232363,-408.4,0.00022082,2]
[312000516,1705540232373,-150.0,0.00022091,2]